bitfinex-derivatives/quotes_BTCF0:USTF0_20260207
["timestamp","ask_amount","ask_price","bid_price","bid_amount"]
[1770480922615,0.07187,69631.0,69566.0,0.55748481]
[1770480922822,0.07187,69631.0,69547.0,0.20972505]
[1770480922823,0.071876,69626.0,69557.0,0.071946]
[1770480923015,0.53165088,69612.0,69545.0,0.55748481]
[1770480923210,0.60354888,69604.0,69545.0,0.55748481]
[1770480923614,0.53165088,69581.0,69521.0,0.55748481]
[1770480923814,0.53165088,69581.0,69536.0,0.071967]
[1770480924012,0.21450822,69603.0,69522.0,0.16778004]
[1770480924013,0.53165088,69602.0,69522.0,0.16778004]
[1770480924211,0.53165088,69583.0,69521.0,0.071983]
[1770480924415,0.53165088,69580.0,69520.0,0.55748481]
[1770480924618,0.53165088,69555.0,69515.0,0.0002]
[1770480925122,0.53165088,69555.0,69484.0,0.21039703]
[1770480925123,0.53165088,69557.0,69491.0,0.072214]
[1770480925330,0.53165088,69547.0,69491.0,0.0002]
[1770480925526,0.53165088,69547.0,69492.0,0.77372555]
[1770480925717,0.53165088,69568.0,69499.0,0.072005]
[1770480925924,0.53165088,69568.0,69504.0,0.55748481]
[1770480926119,0.53165088,69556.0,69506.0,0.0002]
[1770480926424,0.53165088,69552.0,69506.0,0.0002]
[1770480926622,0.071956,69548.0,69494.0,0.16831762]
[1770480926815,0.071942,69562.0,69492.0,0.072013]
[1770480927021,0.53165088,69557.0,69493.0,0.21623458]
[1770480927220,0.071953,69550.0,69486.0,0.55768481]
[1770480927417,0.53165088,69529.0,69478.0,0.00013159]
[1770480927627,0.53165088,69518.0,69466.0,0.1847487]
[1770480927925,0.014391,69547.0,69471.0,0.55748481]
[1770480927926,0.53165088,69529.0,69471.0,0.55748481]
[1770480928115,0.60363888,69517.0,69479.0,0.0002]
[1770480928316,0.60363888,69517.0,69454.0,0.11853471]
[1770480928317,0.53165088,69490.0,69454.0,0.00582601]
[1770480928526,0.60364888,69508.0,69454.0,0.00602601]
[1770480928731,0.53165088,69508.0,69454.0,0.00602601]
[1770480929321,0.53165088,69500.0,69454.0,0.00602601]
[1770480929528,0.53165088,69500.0,69454.0,0.00582601]
[1770480929725,0.014396,69522.0,69454.0,0.00582601]
[1770480929726,0.60363688,69519.0,69454.0,0.00582601]
[1770480929931,0.53165088,69519.0,69447.0,0.0002]
[1770480930136,0.53165088,69500.0,69447.0,0.0002]
[1770480930320,0.53165088,69500.0,69448.0,0.072059]
[1770480930521,0.60363288,69523.0,69452.0,0.62953881]
[1770480930725,0.53165088,69506.0,69471.0,0.0002]
[1770480930920,0.41797098,69576.0,69460.0,0.0002]
[1770480930921,0.53165088,69502.0,69460.0,0.0002]
[1770480931124,0.001,69519.0,69460.0,0.55768481]
[1770480931319,0.001,69519.0,69479.0,0.55748481]
[1770480931524,0.071946,69558.0,69501.0,0.55748481]
[1770480931727,0.53165088,69565.0,69502.0,0.62948781]
[1770480931919,0.071929,69574.0,69510.0,0.55748481]
[1770480932124,0.41797098,69633.0,69512.0,0.55748481]
[1770480932125,0.60357988,69575.0,69512.0,0.55748481]
[1770480932328,0.07191,69593.0,69521.0,0.55748481]
[1770480932529,0.53165088,69616.0,69549.0,0.071954]
[1770480932732,0.071889,69613.0,69548.0,0.55748481]
[1770480932934,0.071889,69613.0,69549.0,0.55748481]
[1770480933226,0.53165088,69614.0,69549.0,0.11235076]
[1770480933430,0.53165088,69610.0,69542.0,0.62944581]
[1770480933623,0.53165088,69614.0,69550.0,0.55748481]
[1770480933821,0.071838,69662.0,69550.0,0.55748481]
[1770480933822,0.071855,69646.0,69567.0,0.071935]
[1770480934032,0.53165088,69640.0,69573.0,0.55748481]
[1770480934331,0.005,69686.0,69573.0,0.55748481]
[1770480934332,0.53165088,69662.0,69592.0,0.014381]
[1770480934523,0.53165088,69662.0,69612.0,0.071888]
[1770480934719,0.53165088,69662.0,69599.0,0.57186481]
[1770480934720,0.0002,69671.0,69616.0,0.55748481]
[1770480934920,0.53185088,69671.0,69616.0,0.55748481]
[1770480935124,0.0002,69671.0,69632.0,0.071868]
[1770480935325,0.0002,69671.0,69590.0,0.11204094]
[1770480935326,0.53165088,69670.0,69605.0,0.62938081]
[1770480935526,0.53165088,69670.0,69612.0,0.014377]
[1770480935732,0.0002,69675.0,69636.0,0.071864]
[1770480936036,0.56164295,69705.0,69639.0,0.57069987]
[1770480936232,0.56164295,69677.0,69606.0,0.071895]
[1770480936437,0.56164295,69653.0,69582.0,0.19834494]
[1770480936641,0.56164295,69648.0,69577.0,0.57069987]
[1770480936929,0.56164295,69635.0,69559.0,0.11183934]
[1770480937133,0.56164295,69635.0,69554.0,0.16899286]
[1770480937134,0.56164295,69621.0,69550.0,0.78775164]
[1770480937334,0.56164295,69640.0,69575.0,0.071927]
[1770480937534,0.0002,69653.0,69566.0,0.071937]
[1770480937535,0.56164295,69635.0,69566.0,0.071937]
[1770480937738,0.56164295,69632.0,69560.0,0.071943]
[1770480937936,0.56164295,69632.0,69578.0,0.071924]
[1770480938238,0.071873,69628.0,69558.0,0.11194361]
[1770480938530,0.071873,69628.0,69545.0,0.57069987]
[1770480938531,0.56164295,69606.0,69540.0,0.16793248]
[1770480938735,0.071896,69606.0,69536.0,0.57069987]
[1770480938926,0.56164295,69642.0,69555.0,0.57069987]
[1770480939125,0.001,69648.0,69580.0,0.57069987]
[1770480939332,0.001,69648.0,69595.0,0.57069987]
[1770480939534,0.63345895,69684.0,69609.0,0.57069987]
[1770480939737,0.63345895,69684.0,69611.0,0.57069987]
[1770480939939,0.56164295,69700.0,69615.0,0.57069987]
[1770480940233,0.071736,69761.0,69593.0,0.20944253]
[1770480940234,0.071776,69723.0,69651.0,0.57069987]
[1770480940443,0.56164295,69728.0,69629.0,0.16755402]
[1770480940444,0.071772,69726.0,69657.0,0.57069987]
[1770480940626,0.56164295,69736.0,69676.0,0.64252287]
[1770480940840,0.0002,69739.0,69688.0,0.57069987]
[1770480941039,0.0002,69739.0,69637.0,0.071863]
[1770480941040,0.56164295,69726.0,69661.0,0.16680883]
[1770480941339,0.56164295,69712.0,69643.0,0.071857]
[1770480941541,0.56164295,69704.0,69631.0,0.014374]
[1770480941745,0.56164295,69694.0,69626.0,0.071874]
[1770480942048,0.071747,69751.0,69611.0,0.07189]
[1770480942049,0.56164295,69681.0,69611.0,0.07189]
[1770480942249,0.56164295,69681.0,69610.0,0.14509877]
[1770480942250,0.56164295,69681.0,69612.0,0.071889]
[1770480942443,0.56164295,69659.0,69583.0,0.16658123]
[1770480942647,0.21554632,69680.0,69605.0,0.071896]
[1770480942648,0.56164295,69654.0,69605.0,0.071896]
[1770480942851,0.56164295,69654.0,69603.0,0.071898]
[1770480943042,0.56184295,69658.0,69594.0,0.071908]
[1770480943242,0.56184295,69658.0,69593.0,0.071909]
[1770480943446,0.56164295,69646.0,69586.0,0.071916]
[1770480943755,0.56164295,69635.0,69576.0,0.071926]
[1770480943946,0.56164295,69624.0,69569.0,0.071933]
[1770480944247,0.56164295,69644.0,69576.0,0.071926]
[1770480944553,0.56164295,69644.0,69570.0,0.14509877]
[1770480944554,0.56164295,69644.0,69570.0,0.071932]
[1770480944847,0.56164295,69642.0,69573.0,0.071929]
[1770480945056,0.56164295,69631.0,69550.0,0.01439]
[1770480945244,0.56164295,69631.0,69566.0,0.071936]
[1770480945551,0.56164295,69619.0,69564.0,0.071939]
[1770480945747,0.56164295,69619.0,69560.0,0.21704077]
[1770480945950,0.0002,69655.0,69544.0,0.0002]
[1770480945951,0.56164295,69654.0,69588.0,0.071914]
[1770480946152,0.56164295,69654.0,69570.0,0.57069987]
[1770480946153,0.001,69642.0,69585.0,0.57069987]
[1770480946450,0.001,69642.0,69563.0,0.20852592]
[1770480946451,0.0002,69668.0,69630.0,0.64257087]
[1770480946646,0.0002,69668.0,69630.0,0.57069987]
[1770480946848,0.0002,69668.0,69622.0,0.57069987]
[1770480947046,0.0002,69668.0,69632.0,0.071868]
[1770480947247,0.0002,69715.0,69652.0,0.57069987]
[1770480947455,0.0002,69715.0,69685.0,0.071814]
[1770480947655,0.0002,69715.0,69662.0,0.57069987]
[1770480947951,0.0002,69715.0,69664.0,0.64253487]
[1770480948160,0.0002,69715.0,69671.0,0.071828]
[1770480948452,0.56164295,69718.0,69674.0,0.071825]
[1770480948653,0.56164295,69723.0,69651.0,0.071848]
[1770480948857,0.56164295,69723.0,69610.0,0.27803457]
[1770480948858,0.56164295,69701.0,69633.0,0.071868]
[1770480949052,0.071797,69702.0,69618.0,0.014376]
[1770480949053,0.56164295,69686.0,69629.0,0.071871]
[1770480949257,0.56164295,69686.0,69618.0,0.071882]
[1770480949560,0.56164295,69686.0,69591.0,0.20852592]
[1770480949561,0.56184295,69686.0,69599.0,0.01438]
[1770480949748,0.56164295,69668.0,69600.0,0.071902]
[1770480950055,0.56164295,69647.0,69554.0,0.57069987]
[1770480950356,0.56164295,69647.0,69593.0,0.071909]
[1770480950654,0.56164295,69704.0,69637.0,0.071863]
[1770480950858,0.56164295,69704.0,69644.0,0.57069987]
[1770480951159,0.56164295,69693.0,69624.0,0.64257687]
[1770480951352,0.56164295,69688.0,69624.0,0.57069987]
[1770480951551,0.63345495,69688.0,69624.0,0.57069987]
[1770480951752,0.63346295,69680.0,69608.0,0.071893]
[1770480951954,0.63346295,69680.0,69611.0,0.07189]
[1770480952153,0.56164295,69680.0,69611.0,0.07189]
[1770480952452,0.56164295,69680.0,69610.0,0.14509877]
[1770480952453,0.071829,69671.0,69601.0,0.071901]
[1770480952661,0.56164295,69674.0,69624.0,0.001]
[1770480953151,0.56164295,69674.0,69610.0,0.14509877]
[1770480953351,0.56164295,69672.0,69614.0,0.071886]
[1770480953758,0.56164295,69672.0,69586.0,0.16665776]
[1770480953759,0.56164295,69670.0,69605.0,0.071896]
[1770480954255,0.56164295,69670.0,69612.0,0.071889]
[1770480954467,0.56164295,69670.0,69607.0,0.071894]
[1770480954653,0.56164295,69670.0,69614.0,0.071887]
[1770480955648,0.56164295,69670.0,69613.0,0.071887]
[1770480955852,0.56164295,69670.0,69620.0,0.071881]
[1770480956049,0.0002,69683.0,69621.0,0.071879]
[1770480956255,0.56164295,69660.0,69593.0,0.071908]
[1770480956454,0.56164295,69674.0,69612.0,0.64258887]
[1770480956659,0.56164295,69674.0,69605.0,0.071897]
[1770480956963,0.56164295,69647.0,69580.0,0.071922]
[1770480957266,0.0002,69683.0,69570.0,0.14509877]
[1770480957267,0.0002,69660.0,69612.0,0.071889]
[1770480957461,0.0002,69660.0,69615.0,0.086262]
[1770480957758,0.0002,69660.0,69631.0,0.071869]
[1770480957958,0.41797098,69768.0,69614.0,0.001]
[1770480957959,0.56164295,69705.0,69645.0,0.071855]
[1770480958152,0.56184295,69705.0,69641.0,0.071859]
[1770480958458,0.56164295,69684.0,69616.0,0.071885]
[1770480958655,0.56184295,69705.0,69641.0,0.57069987]
[1770480958861,0.63343795,69704.0,69641.0,0.57069987]
[1770480959058,0.56164295,69704.0,69658.0,0.071842]
[1770480959260,0.0002,69705.0,69673.0,0.071826]
[1770480959261,0.001,69705.0,69673.0,0.071826]
[1770480959457,0.001,69705.0,69665.0,0.071834]
[1770480959762,0.001,69705.0,69658.0,0.071842]
[1770480959962,0.0002,69744.0,69689.0,0.07181]
[1770480960264,0.0002,69744.0,69702.0,0.071796]
[1770480960463,0.56164295,69770.0,69708.0,0.071789]
[1770480960661,0.56164295,69770.0,69702.0,0.014359]
[1770480960662,0.56164295,69755.0,69689.0,0.16711962]
[1770480960863,0.56164295,69747.0,69681.0,0.58506287]
[1770480961157,0.56164295,69747.0,69680.0,0.14509877]
[1770480961158,0.56164295,69739.0,69689.0,0.07181]
[1770480961356,0.56164295,69739.0,69677.0,0.16711962]
[1770480961561,0.56164295,69733.0,69670.0,0.14509877]
[1770480961865,0.56164295,69717.0,69652.0,0.16711962]
[1770480962161,0.56164295,69707.0,69634.0,0.16731962]
[1770480962464,0.071793,69706.0,69639.0,0.64255987]
[1770480962658,0.56164295,69713.0,69643.0,0.57069987]
[1770480962861,0.143664,69765.0,69659.0,0.57069987]
[1770480962862,0.56164295,69734.0,69659.0,0.57069987]
[1770480963164,0.56164295,69734.0,69637.0,0.014372]
[1770480963165,0.56164295,69726.0,69669.0,0.57069987]
[1770480963362,0.001,69707.0,69666.0,0.071833]
[1770480963671,0.56264295,69707.0,69649.0,0.73781949]
[1770480963858,0.56264295,69707.0,69625.0,0.34726694]
[1770480963859,0.63343595,69706.0,69643.0,0.16711962]
[1770480964060,0.56164295,69672.0,69621.0,0.16711962]
[1770480964364,0.56164295,69628.0,69590.0,0.0002]
[1770480964566,0.56164295,69614.0,69554.0,0.27851226]
[1770480964861,0.56164295,69614.0,69544.0,0.34726694]
[1770480964862,0.63353395,69611.0,69560.0,0.21600945]
[1770480965062,0.56164295,69581.0,69530.0,0.21124771]
[1770480965265,0.63357695,69569.0,69515.0,0.21124771]
[1770480965460,0.00012487,69568.0,69516.0,0.21611439]
[1770480965660,0.56164295,69569.0,69509.0,0.64269587]
[1770480965661,0.00017115,69567.0,69517.0,0.28810139]
[1770480965966,0.00017115,69567.0,69511.0,0.0002]
[1770480965967,0.56164295,69615.0,69558.0,0.071945]
[1770480966272,0.0002,69611.0,69564.0,0.6445888]
[1770480966569,0.5252,69662.0,69600.0,0.14509877]
[1770480966759,0.5252,69650.0,69552.0,0.34726694]
[1770480966960,0.5252,69585.0,69528.0,0.0002]
[1770480967159,0.5252,69585.0,69532.0,0.071971]
[1770480967364,0.5252,69585.0,69533.0,0.21607313]
[1770480967568,0.597136,69567.0,69511.0,0.2109641]
[1770480967765,0.5252,69567.0,69530.0,0.071974]
[1770480968070,0.5252,69599.0,69531.0,0.78872449]
[1770480968367,0.5252,69599.0,69540.0,0.5726498]
[1770480968559,0.5252,69632.0,69570.0,0.14509877]
[1770480968756,0.0002,69647.0,69538.0,0.28128546]
[1770480968757,0.5252,69606.0,69557.0,0.2109641]
[1770480968966,0.597073,69629.0,69560.0,0.5726498]
[1770480969164,0.071899,69603.0,69543.0,0.2109641]
[1770480969361,0.5252,69614.0,69541.0,0.5726498]
[1770480969565,0.5252,69614.0,69550.0,0.14509877]
[1770480969864,0.5252,69638.0,69574.0,0.071928]
[1770480970260,0.5252,69638.0,69580.0,0.14509877]
[1770480970462,0.0002,69642.0,69600.0,0.14509877]
[1770480970660,0.41797098,69736.0,69600.0,0.14509877]
[1770480970661,0.5252,69674.0,69601.0,0.21596496]
[1770480970865,0.0002,69698.0,69584.0,0.5726498]
[1770480970866,0.57054193,69660.0,69598.0,0.071903]
[1770480971167,0.57054193,69682.0,69629.0,0.071871]
[1770480971366,0.57074193,69698.0,69631.0,0.014373]
[1770480971566,0.57074193,69698.0,69649.0,0.071851]
[1770480971770,0.57074193,69698.0,69640.0,0.14452642]
[1770480971771,0.0002,69698.0,69655.0,0.64475471]
[1770480971974,0.0002,69705.0,69660.0,0.71743713]
[1770480972171,0.0002,69705.0,69660.0,0.57291071]
[1770480972869,0.57054193,69739.0,69679.0,0.071819]
[1770480973071,0.57054193,69734.0,69677.0,0.071822]
[1770480973264,0.0002,69727.0,69690.0,0.071808]
[1770480973459,0.0002,69727.0,69693.0,0.071805]
[1770480973665,0.0002,69727.0,69644.0,0.34726694]
[1770480973666,0.071745,69753.0,69700.0,0.57291071]
[1770480973862,0.57054193,69762.0,69711.0,0.071787]
[1770480974075,0.0002,69784.0,69720.0,0.071777]
[1770480974263,0.0002,69784.0,69732.0,0.071765]
[1770480974473,0.57054193,69797.0,69731.0,0.071766]
[1770480974771,0.57054193,69797.0,69740.0,0.14452642]
[1770480974972,0.57054193,69791.0,69730.0,0.14452642]
[1770480975171,0.071715,69782.0,69713.0,0.21032039]
[1770480975368,0.57054193,69791.0,69721.0,0.57291071]
[1770480975565,0.0002,69780.0,69722.0,0.21552547]
[1770480975768,0.0002,69780.0,69724.0,0.57291071]
[1770480976076,0.0002,69780.0,69720.0,0.14452642]
[1770480976077,0.0002,69780.0,69740.0,0.71743713]
[1770480976275,0.0002,69780.0,69740.0,0.57291071]
[1770480976580,0.00033384,69778.0,69740.0,0.57291071]
[1770480976876,0.0002,69795.0,69740.0,0.64466771]
[1770480977174,0.0002,69808.0,69762.0,0.57291071]
[1770480977373,0.57054193,69807.0,69744.0,0.071752]
[1770480977583,0.0002,69808.0,69755.0,0.57291071]
[1770480977768,0.0002,69808.0,69760.0,0.14452642]
[1770480978075,0.071672,69824.0,69760.0,0.14452642]
[1770480978076,0.0002,69817.0,69760.0,0.57291071]
[1770480978481,0.071682,69814.0,69746.0,0.64466071]
[1770480978682,0.071698,69799.0,69746.0,0.57291071]
[1770480978868,0.071688,69808.0,69751.0,0.57291071]
[1770480979074,0.57054193,69801.0,69731.0,0.071766]
[1770480979275,0.071704,69792.0,69711.0,0.57291071]
[1770480979475,0.57054193,69799.0,69724.0,0.57291071]
[1770480979781,0.57054193,69799.0,69692.0,0.20749051]
[1770480979782,0.57054193,69799.0,69731.0,0.071766]
[1770480980078,0.0002,69813.0,69732.0,0.57291071]
[1770480980273,0.0002,69815.0,69777.0,0.071719]
[1770480980473,0.0002,69815.0,69778.0,0.57291071]
[1770480980882,0.0002,69815.0,69757.0,0.57291071]
[1770480981075,0.0002,69815.0,69759.0,0.57291071]
[1770480981272,0.001,69813.0,69762.0,0.57291071]
[1770480981484,5.008e-05,69812.0,69771.0,0.071725]
[1770480981781,0.57054193,69810.0,69740.0,0.14452642]
[1770480982087,0.57054193,69770.0,69695.0,0.07191646]
[1770480982389,0.57054193,69748.0,69671.0,0.071828]
[1770480982572,0.071699,69798.0,69654.0,0.071846]
[1770480982573,0.64230493,69735.0,69654.0,0.071846]
[1770480982775,0.071783,69715.0,69644.0,0.00011627]
[1770480982975,0.57054193,69705.0,69636.0,0.071864]
[1770480983173,0.57054193,69689.0,69616.0,0.071884]
[1770480983377,0.21490654,69714.0,69624.0,0.071877]
[1770480983378,0.57054193,69687.0,69624.0,0.071877]
[1770480983677,0.64235693,69685.0,69599.0,0.58729071]
[1770480983873,0.57054193,69683.0,69620.0,0.071881]
[1770480984080,0.57054193,69683.0,69608.0,0.57291071]
[1770480984081,0.57054193,69681.0,69618.0,0.071883]
[1770480984274,0.57054193,69679.0,69611.0,0.014377]
[1770480984577,0.57054193,69679.0,69611.0,0.57291071]
[1770480984782,0.64233193,69709.0,69640.0,0.07186]
[1770480984981,0.0002,69709.0,69662.0,0.57291071]
[1770480985483,0.57054193,69693.0,69623.0,0.071877]
[1770480985682,5.008e-05,69692.0,69630.0,0.64478071]
[1770480985876,5.008e-05,69691.0,69638.0,0.071862]
[1770480986075,0.57054193,69703.0,69649.0,0.071851]
[1770480986381,0.57054193,69717.0,69652.0,0.58727971]
[1770480986587,0.57054193,69738.0,69676.0,0.071823]
[1770480986877,0.0002,69740.0,69699.0,0.071799]
[1770480987082,0.071729,69768.0,69699.0,0.64470971]
[1770480987279,0.0002,69789.0,69727.0,0.64468171]
[1770480987479,0.071712,69785.0,69727.0,0.57291071]
[1770480987674,0.071712,69785.0,69663.0,0.27614094]
[1770480987675,0.64227793,69762.0,69701.0,0.57291071]
[1770480987874,0.071711,69785.0,69719.0,0.57291071]
[1770480988075,0.57054193,69776.0,69699.0,0.0728]
[1770480988280,0.57054193,69788.0,69725.0,0.071772]
[1770480988477,0.0002,69809.0,69754.0,0.071743]
[1770480988478,0.57054193,69808.0,69754.0,0.071743]
[1770480988674,0.0002,69809.0,69758.0,0.57291071]
[1770480988878,0.0002,69809.0,69749.0,0.014349]
[1770480988879,0.0002,69809.0,69747.0,0.071749]
[1770480989077,0.071689,69807.0,69739.0,0.071758]
[1770480989275,0.57074193,69809.0,69722.0,0.071775]
[1770480989276,0.071707,69789.0,69722.0,0.071775]
[1770480989483,0.57054193,69805.0,69734.0,0.071764]
[1770480989484,0.0002,69785.0,69734.0,0.071764]
[1770480989679,0.0002,69785.0,69711.0,0.57291071]
[1770480989680,0.57054193,69784.0,69711.0,0.57291071]
[1770480989879,0.0002,69785.0,69757.0,0.07174]
[1770480990086,0.0002,69785.0,69751.0,0.57291071]
[1770480990283,0.57054193,69806.0,69730.0,0.57291071]
[1770480990478,0.0002,69795.0,69757.0,0.071739]
[1770480990688,0.0002,69795.0,69765.0,0.071731]
[1770480990988,0.57054193,69829.0,69771.0,0.071726]
[1770480991284,0.0002,69802.0,69773.0,0.071723]
[1770480991591,0.0002,69819.0,69773.0,0.57291071]
[1770480992084,0.0002,69839.0,69792.0,0.57291071]
[1770480992288,0.0002,69853.0,69806.0,0.071689]
[1770480992489,0.0002,69856.0,69819.0,0.071676]
[1770480992681,0.57074193,69856.0,69800.0,0.14452642]
[1770480992884,0.57054193,69854.0,69784.0,0.071711]
[1770480993078,0.57054193,69833.0,69768.0,0.57291071]
[1770480993279,0.57054193,69812.0,69753.0,0.00014724]
[1770480993484,0.071698,69799.0,69725.0,0.071772]
[1770480993681,0.57054193,69785.0,69716.0,0.071782]
[1770480993876,0.57054193,69785.0,69714.0,0.0002]
[1770480993877,0.57054193,69770.0,69714.0,0.0002]
[1770480994184,0.57054193,69757.0,69687.0,0.071812]
[1770480994387,0.57054193,69755.0,69699.0,0.071799]
[1770480994581,0.57054193,69761.0,69686.0,0.071812]
[1770480994883,0.071693,69804.0,69670.0,0.071829]
[1770480994884,0.57054193,69737.0,69670.0,0.071829]
[1770480995083,0.57054193,69726.0,69644.0,0.014371]
[1770480995282,0.0002,69755.0,69653.0,0.071847]
[1770480995283,0.57054193,69705.0,69653.0,0.071847]
[1770480995491,0.071765,69733.0,69655.0,0.64475571]
[1770480995681,0.071765,69733.0,69614.0,0.071886]
[1770480995682,0.57054193,69731.0,69668.0,0.071831]
[1770480995879,0.57171879,69729.0,69663.0,0.64936493]
[1770480996186,0.64344179,69774.0,69710.0,0.57752893]
[1770480996381,0.0002,69781.0,69700.0,0.071798]
[1770480996382,0.0002,69781.0,69722.0,0.071775]
[1770480996581,0.0002,69801.0,69744.0,0.57752893]
[1770480996788,0.0002,69818.0,69753.0,0.57752893]
[1770480996989,0.0002,69829.0,69779.0,0.071717]
[1770480997190,0.0002,69829.0,69798.0,0.071697]
[1770480997486,0.57171879,69852.0,69787.0,0.071709]
[1770480997686,0.57171879,69852.0,69720.0,0.143554]
[1770480997687,0.15885142,69870.0,69791.0,0.071704]
[1770480997886,0.0002,69855.0,69814.0,0.57752893]
[1770480998187,0.64332479,69888.0,69818.0,0.071676]
[1770480998395,0.071613,69881.0,69808.0,0.64921593]
[1770480998579,0.0002,69898.0,69792.0,0.071703]
[1770480998580,0.57171879,69861.0,69792.0,0.071703]
[1770480998781,0.64334979,69864.0,69795.0,0.57752893]
[1770480998981,0.57171879,69859.0,69794.0,0.071701]
[1770480999295,0.0002,69865.0,69804.0,0.57752893]
[1770480999483,0.57171879,69864.0,69774.0,0.57752893]
[1770480999683,0.57171879,69857.0,69799.0,0.071696]
[1770480999989,0.57166879,69857.0,69808.0,0.071687]
[1770481000188,0.57166879,69857.0,69805.0,0.07169]
[1770481000189,5.008e-05,69856.0,69805.0,0.07169]
[1770481000389,5.008e-05,69856.0,69780.0,0.57752893]
[1770481000390,0.57171879,69882.0,69814.0,0.07168]
[1770481000689,0.071621,69874.0,69803.0,0.071692]
[1770481000890,0.071817,69878.0,69803.0,0.071692]
[1770481001093,0.57191879,69878.0,69810.0,0.14452642]
[1770481001297,0.57171879,69855.0,69790.0,0.14452642]
[1770481001486,0.57171879,69855.0,69759.0,0.16571806]
[1770481001487,0.57171879,69843.0,69779.0,0.071717]
[1770481001686,0.57171879,69834.0,69758.0,0.57752893]
[1770481001888,0.57171879,69820.0,69752.0,0.071745]
[1770481002088,0.57171879,69812.0,69744.0,0.071753]
[1770481002297,0.0002,69801.0,69751.0,0.071746]
[1770481002500,0.57191879,69801.0,69738.0,0.071759]
[1770481002807,0.21445307,69800.0,69744.0,0.57752893]
[1770481003104,0.57171879,69786.0,69716.0,0.071782]
[1770481003284,0.57171879,69786.0,69695.0,0.20873728]
[1770481003285,0.0002,69773.0,69710.0,0.57752893]
[1770481003489,0.0002,69773.0,69718.0,0.07178]
[1770481003791,0.57171879,69772.0,69717.0,0.071781]
[1770481003992,0.57171879,69772.0,69723.0,0.071774]
[1770481004190,0.57171879,69772.0,69702.0,0.57762975]
[1770481004191,0.57171879,69772.0,69718.0,0.07178]
[1770481004492,0.57171879,69772.0,69706.0,0.014358]
[1770481004493,0.0002,69765.0,69723.0,0.57752893]
[1770481004689,0.0002,69765.0,69711.0,0.014357]
[1770481004887,0.0002,69765.0,69705.0,0.071793]
[1770481005203,0.071759,69739.0,69668.0,0.071831]
[1770481005391,0.57171879,69735.0,69667.0,0.071832]
[1770481005694,0.57171879,69735.0,69652.0,0.20910486]
[1770481005695,0.57171879,69733.0,69680.0,0.071818]
[1770481005897,0.071744,69754.0,69685.0,0.071814]
[1770481006195,0.57171879,69751.0,69678.0,0.11137892]
[1770481006395,0.57171879,69742.0,69672.0,0.071827]
[1770481006598,0.014349,69748.0,69664.0,0.0002]
[1770481006599,0.57171879,69727.0,69664.0,0.0002]
[1770481006798,0.071718,69779.0,69664.0,0.0002]
[1770481006799,0.57171879,69704.0,69664.0,0.0002]
[1770481006997,0.071773,69725.0,69664.0,0.0002]
[1770481007200,0.57171879,69719.0,69664.0,0.0002]
[1770481007390,0.57171879,69704.0,69664.0,0.0002]
[1770481007592,0.071737,69760.0,69636.0,0.071864]
[1770481007593,0.57171879,69702.0,69636.0,0.071864]
[1770481007796,0.57171879,69702.0,69640.0,0.07186]
[1770481008096,0.57171879,69702.0,69640.0,0.64938893]
[1770481008398,0.57171879,69702.0,69630.0,0.31151624]
[1770481008399,0.0718,69699.0,69639.0,0.11137892]
[1770481008589,0.57171879,69697.0,69644.0,0.071856]
[1770481008790,0.57171879,69720.0,69651.0,0.071848]
[1770481008995,0.57171879,69720.0,69661.0,0.071838]
[1770481009194,0.57171879,69720.0,69650.0,0.07185]
[1770481009195,0.57171879,69718.0,69650.0,0.07185]
[1770481009502,0.071788,69710.0,69649.0,0.57752893]
[1770481009700,0.57171879,69708.0,69634.0,0.11137892]
[1770481009891,0.57171879,69701.0,69637.0,0.071863]
[1770481010096,0.07179,69708.0,69650.0,0.57752893]
[1770481010097,5.008e-05,69700.0,69650.0,0.57752893]
[1770481010296,0.0002,69708.0,69650.0,0.57752893]
[1770481010598,0.57191879,69708.0,69642.0,0.18323692]
[1770481010793,0.0002,69708.0,69654.0,0.071846]
[1770481010997,0.0002,69708.0,69650.0,0.57752893]
[1770481011295,5.008e-05,69707.0,69650.0,0.57752893]
[1770481011500,0.57171879,69737.0,69668.0,0.071831]
[1770481011808,0.071747,69750.0,69689.0,0.57752893]
[1770481011994,0.57171879,69759.0,69691.0,0.57752893]
[1770481012190,0.07173,69767.0,69701.0,0.57752893]
[1770481012399,0.57171879,69775.0,69708.0,0.57752893]
[1770481012593,0.0002,69783.0,69734.0,0.64929293]
[1770481012798,0.0002,69783.0,69730.0,0.14452642]
[1770481012799,0.0002,69783.0,69744.0,0.57752893]
[1770481012993,0.07168,69816.0,69745.0,0.071752]
[1770481013200,0.57171879,69803.0,69737.0,0.07176]
[1770481013400,0.071685,69811.0,69751.0,0.57752893]
[1770481013703,0.64340379,69810.0,69740.0,0.14452642]
[1770481013897,0.014535,69821.0,69760.0,0.14452642]
[1770481013898,0.071678,69817.0,69760.0,0.14452642]
[1770481014105,0.071685,69811.0,69740.0,0.57752893]
[1770481014301,0.64341179,69803.0,69733.0,0.64929293]
[1770481014494,0.0002,69795.0,69753.0,0.64927293]
[1770481014700,0.00015,69795.0,69753.0,0.64927293]
[1770481014905,0.0002,69813.0,69781.0,0.57752893]
[1770481015208,0.071646,69849.0,69778.0,0.64924593]
[1770481015406,0.0002,69851.0,69778.0,0.57752893]
[1770481015613,0.0002,69857.0,69803.0,0.071692]
[1770481015913,0.0002,69857.0,69779.0,0.2116044]
[1770481015914,0.57171879,69834.0,69769.0,0.57752893]
[1770481016094,0.071676,69819.0,69769.0,0.57752893]
[1770481016300,0.64339579,69819.0,69749.0,0.00015689]
[1770481016502,0.57171879,69809.0,69748.0,0.57752893]
[1770481016701,0.57191879,69809.0,69749.0,0.57752893]
[1770481016905,0.0002,69809.0,69770.0,0.071726]
[1770481017108,0.0002,69809.0,69760.0,0.57752893]
[1770481017300,0.0002,69809.0,69737.0,0.20909379]
[1770481017301,0.0002,69809.0,69749.0,0.11137892]
[1770481017500,0.57191879,69809.0,69749.0,0.57752893]
[1770481018014,0.57191879,69809.0,69737.0,0.16727503]
[1770481018015,0.57171879,69790.0,69722.0,0.071776]
[1770481018206,0.57171879,69790.0,69714.0,0.071784]
[1770481018207,0.57171879,69781.0,69714.0,0.071784]
[1770481018409,0.57171879,69759.0,69699.0,0.00013592]
[1770481018603,0.57171879,69744.0,69681.0,0.11137892]
[1770481018809,0.57171879,69729.0,69671.0,0.071828]
[1770481019113,0.57171879,69727.0,69669.0,0.07183]